bitfinex-derivatives/quotes_BTCF0:USTF0_20250129
["timestamp","ask_amount","ask_price","bid_price","bid_amount"]
[1738155838355,1.05188044,102130.0,102120.0,0.0001133]
[1738155838744,1.14366388,102130.0,102120.0,0.0001133]
[1738155839054,2.56068467,102130.0,102120.0,0.0001133]
[1738155839967,1.06068467,102130.0,102120.0,0.0001133]
[1738155840162,0.3737201,102130.0,102120.0,0.2560293]
[1738155840748,0.46550354,102130.0,102120.0,0.2560293]
[1738155841261,1.02220054,102130.0,102120.0,0.0601133]
[1738155841455,0.3737201,102130.0,102120.0,0.0601133]
[1738155841757,0.0129201,102130.0,102120.0,0.70861274]
[1738155841965,0.0129201,102130.0,102120.0,0.9083735]
[1738155842162,0.11596005,102140.0,102130.0,0.195897]
[1738155842367,0.11596005,102140.0,102130.0,0.52718044]
[1738155843253,0.00014685,102140.0,102130.0,0.52718044]
[1738155844061,0.00114685,102140.0,102130.0,0.52718044]
[1738155845266,0.00114685,102140.0,102130.0,0.88798044]
[1738155850461,0.00114685,102140.0,102130.0,0.8881107]
[1738155853769,0.556661,102150.0,102140.0,0.195878]
[1738155853962,0.556661,102150.0,102140.0,0.57936144]
[1738155854268,0.65212669,102160.0,102150.0,0.195859]
[1738155854475,0.65212669,102160.0,102150.0,0.49764244]
[1738155855368,0.45628069,102160.0,102150.0,0.49764244]
[1738155856872,0.09648069,102160.0,102150.0,0.49764244]
[1738155857064,0.09648069,102160.0,102150.0,0.85844244]
[1738155857065,0.08756468,102160.0,102150.0,0.85844244]
[1738155857669,0.08756468,102160.0,102150.0,0.95022588]
[1738155857866,0.08756468,102160.0,102150.0,1.01846588]
[1738155858068,0.17334221,102190.0,102150.0,1.10153645]
[1738155858264,0.17334221,102190.0,102180.0,0.28758444]
[1738155858468,0.36912421,102190.0,102180.0,0.48758444]
[1738155858665,0.36912421,102190.0,102180.0,0.52588444]
[1738155859464,0.37312421,102190.0,102180.0,0.52588444]
[1738155859664,0.73392421,102190.0,102180.0,0.52588444]
[1738155860070,0.73993214,102190.0,102180.0,0.52588444]
[1738155860574,0.37913214,102190.0,102180.0,0.52588444]
[1738155860873,0.74093214,102190.0,102180.0,0.395801]
[1738155861174,0.83271558,102190.0,102180.0,0.2]
[1738155861470,0.83271558,102190.0,102170.0,0.00014685]
[1738155861471,0.195801,102180.0,102170.0,0.00014685]
[1738155861677,0.69118444,102180.0,102170.0,0.21014685]
[1738155862277,0.78296788,102180.0,102170.0,0.00014685]
[1738155862975,0.78296788,102180.0,102170.0,0.00214685]
[1738155864177,0.78296788,102180.0,102170.0,0.00314685]
[1738155864475,1.14376788,102180.0,102170.0,0.00314685]
[1738155865876,1.05198444,102180.0,102170.0,0.00314685]
[1738155866778,1.14376788,102180.0,102170.0,0.00314685]
[1738155866967,1.05198444,102180.0,102170.0,0.00314685]
[1738155868573,1.14376788,102180.0,102170.0,0.00314685]
[1738155868876,0.195859,102150.0,102140.0,0.235374]
[1738155869177,0.556659,102150.0,102140.0,0.435374]
[1738155869677,0.597759,102150.0,102140.0,0.435374]
[1738155869875,0.597759,102150.0,102140.0,0.395874]
[1738155870062,0.68954244,102150.0,102140.0,0.201]
[1738155870370,0.635659,102150.0,102140.0,0.201]
[1738155870576,0.635659,102150.0,102140.0,0.2]
[1738155872176,0.635659,102150.0,102140.0,0.202]
[1738155872379,0.72744244,102150.0,102140.0,0.202]
[1738155874273,0.81922588,102150.0,102140.0,0.202]
[1738155874480,0.195878,102140.0,102130.0,0.29692408]
[1738155874669,0.64846144,102140.0,102130.0,0.30692408]
[1738155875066,0.556678,102140.0,102130.0,0.30692408]
[1738155875679,0.556678,102140.0,102130.0,0.59460452]
[1738155877683,0.556678,102140.0,102130.0,0.63670452]
[1738155877877,0.597766,102150.0,102130.0,0.80160752]
[1738155878180,0.556666,102150.0,102140.0,0.237978]
[1738155878372,0.3608,102150.0,102140.0,0.57026144]
[1738155878772,0.3608,102150.0,102140.0,0.478478]
[1738155878980,0.556659,102150.0,102140.0,0.478478]
[1738155879483,0.64844244,102150.0,102140.0,0.437978]
[1738155879683,0.556659,102150.0,102140.0,0.437978]
[1738155879868,0.557659,102150.0,102140.0,0.437978]
[1738155883184,0.557659,102150.0,102140.0,0.2]
[1738155883381,0.69014244,102150.0,102140.0,0.2]
[1738155883582,0.598359,102150.0,102140.0,0.2]
[1738155885485,0.69014244,102150.0,102140.0,0.2]
[1738155888687,0.195878,102140.0,102130.0,0.29470408]
[1738155888990,0.73266144,102140.0,102130.0,0.47909961]
[1738155890001,0.73566144,102140.0,102130.0,0.28909961]
[1738155890193,0.73666144,102140.0,102130.0,0.28909961]
[1738155890785,0.73566144,102140.0,102130.0,0.28909961]
[1738155890984,0.73566144,102140.0,102130.0,0.29009961]
[1738155891391,0.559678,102140.0,102130.0,0.59188305]
[1738155891593,0.195878,102140.0,102130.0,0.83238005]
[1738155891790,0.64845244,102150.0,102130.0,0.74359661]
[1738155891995,0.64845244,102150.0,102140.0,0.0816]
[1738155892186,0.556669,102150.0,102140.0,0.467478]
[1738155892894,0.70110291,102150.0,102140.0,0.467478]
[1738155893894,0.79288635,102150.0,102140.0,0.2716]
[1738155894585,0.79388635,102150.0,102140.0,0.2716]
[1738155895380,0.64945244,102150.0,102140.0,0.2716]
[1738155896595,0.64945244,102150.0,102140.0,0.19]
[1738155897799,0.74123588,102150.0,102140.0,0.19]
[1738155898000,0.78493588,102150.0,102140.0,0.19]
[1738155898298,0.69315244,102150.0,102140.0,0.19]
[1738155901399,0.78493588,102150.0,102140.0,0.19]
[1738155901596,0.195878,102140.0,102130.0,0.28909961]
[1738155901791,0.73366144,102140.0,102130.0,0.28909961]
[1738155902794,0.73666144,102140.0,102130.0,0.28909961]
[1738155903295,0.73766144,102140.0,102130.0,0.30909961]
[1738155904497,0.560678,102140.0,102130.0,0.30909961]
[1738155904802,0.560678,102140.0,102130.0,0.35299961]
[1738155905193,0.65246144,102140.0,102130.0,0.35299961]
[1738155905388,0.557678,102140.0,102130.0,0.35499961]
[1738155905997,0.558678,102140.0,102130.0,0.35299961]
[1738155906198,0.65046144,102140.0,102130.0,0.35299961]
[1738155906599,0.64946144,102140.0,102130.0,0.35299961]
[1738155907304,0.64946144,102140.0,102130.0,0.54889661]
[1738155907305,0.557678,102140.0,102130.0,0.54889661]
[1738155907501,0.557678,102140.0,102130.0,0.59269661]
[1738155910608,0.57155722,102140.0,102130.0,0.59269661]
[1738155911006,0.66334066,102140.0,102130.0,0.39679961]
[1738155911511,0.66334066,102140.0,102130.0,0.59269661]
[1738155912018,0.57155722,102140.0,102130.0,0.59269661]
[1738155920113,0.57155722,102140.0,102130.0,0.39679961]
[1738155920317,0.66334066,102140.0,102130.0,0.39679961]
[1738155920517,0.57155722,102140.0,102130.0,0.39679961]
[1738155920913,0.57155722,102140.0,102130.0,0.59269661]
[1738155921421,0.57155722,102140.0,102130.0,0.39679961]
[1738155921817,0.66334066,102140.0,102130.0,0.30909961]
[1738155922018,0.70574066,102140.0,102130.0,0.30909961]
[1738155922215,0.79224066,102140.0,102130.0,0.30909961]
[1738155922416,0.90819902,102140.0,102130.0,0.30909961]
[1738155925522,0.90719902,102140.0,102130.0,0.30909961]
[1738155925726,0.90819902,102140.0,102130.0,0.31109961]
[1738155925921,0.90819902,102140.0,102130.0,0.29109961]
[1738155926121,0.90819902,102140.0,102130.0,0.07642532]
[1738155926327,0.90819902,102140.0,102130.0,0.06404822]
[1738155926522,0.90719902,102140.0,102130.0,0.06504822]
[1738155926713,0.90719902,102140.0,102130.0,0.00314685]
[1738155926913,0.195936,102110.0,102100.0,0.1]
[1738155927222,1.00931944,102110.0,102100.0,0.29]
[1738155927416,1.13891944,102110.0,102100.0,0.1]
[1738155928723,1.0061416,102110.0,102100.0,0.14]
[1738155928917,0.9628416,102110.0,102100.0,0.14]
[1738155929123,0.9176416,102110.0,102100.0,0.335955]
[1738155929526,1.00942504,102110.0,102100.0,0.335955]
[1738155929719,0.7217056,102110.0,102100.0,0.335955]
[1738155931021,0.3609056,102110.0,102100.0,0.335955]
[1738155931516,0.3609056,102110.0,102100.0,0.377055]
[1738155932329,0.3749637,102110.0,102100.0,0.377055]
[1738155932529,0.3779637,102110.0,102100.0,0.377055]
[1738155933427,0.3789637,102110.0,102100.0,0.377055]
[1738155934533,0.5748997,102110.0,102100.0,0.377055]
[1738155937937,0.5748997,102110.0,102100.0,0.1811]
[1738155938326,1.02747217,102110.0,102100.0,0.14]
[1738155938525,1.11847754,102110.0,102100.0,0.14]
[1738155941021,1.11857009,102110.0,102100.0,0.14]
[1738155941222,1.11855318,102110.0,102100.0,0.14]
[1738155941423,1.11854904,102110.0,102100.0,0.14]
[1738155941737,1.11847754,102110.0,102100.0,0.14]
[1738155942850,1.11847754,102110.0,102100.0,0.1]
[1738155944130,1.11858273,102110.0,102100.0,0.1]
[1738155944329,1.11847754,102110.0,102100.0,0.1]
[1738155945524,2.61847754,102110.0,102100.0,0.1]
[1738155945734,2.68063754,102110.0,102100.0,0.1]
[1738155946934,2.78454154,102110.0,102090.0,0.00014685]
[1738155947240,0.196011,102080.0,102060.0,0.4491]
[1738155947536,0.36090025,102070.0,102060.0,0.3083]
[1738155947732,0.00010025,102070.0,102060.0,0.59611544]
[1738155948639,0.00310025,102070.0,102060.0,0.59611544]
[1738155949532,0.00410025,102070.0,102060.0,0.59611544]
[1738155950032,0.00410025,102070.0,102060.0,0.504332]
[1738155950434,0.29189569,102070.0,102060.0,0.22]
[1738155950838,0.20011225,102070.0,102060.0,0.503331]
[1738155951242,0.65269569,102070.0,102060.0,0.22]
[1738155951538,0.74484688,102070.0,102040.0,7.016e-05]
[1738155951739,0.64863444,102050.0,102040.0,7.016e-05]
[1738155951932,0.64871827,102050.0,102040.0,7.016e-05]
[1738155952138,1.09951827,102050.0,102040.0,7.016e-05]
[1738155952339,1.09943444,102050.0,102040.0,7.016e-05]
[1738155952743,2.59943444,102050.0,102040.0,0.00207016]
[1738155953239,0.3608,102030.0,102000.0,1.765329]
[1738155953445,0.3608,102030.0,102000.0,1.73094605]
[1738155953446,1.10129388,102010.0,102000.0,1.73094605]
[1738155953744,1.10129388,102010.0,102000.0,1.17218364]
[1738155953938,1.07475044,102010.0,102000.0,1.17218364]
[1738155954644,0.81338344,102010.0,102000.0,1.17218364]
[1738155954836,0.81338344,102010.0,102000.0,1.36833064]
[1738155954837,0.3608,102010.0,102000.0,1.36833064]
[1738155955037,0.405,102020.0,102010.0,0.196128]
[1738155955340,0.3608,102020.0,102000.0,1.25678364]
[1738155955549,0.45258344,102010.0,102000.0,1.17218364]
[1738155955749,0.3608,102010.0,102000.0,1.36833064]
[1738155955947,0.3628,102010.0,102000.0,1.36833064]
[1738155956143,0.3638,102010.0,102000.0,1.36833064]
[1738155956446,0.70376112,102020.0,102000.0,1.67476708]
[1738155956447,0.01285568,102020.0,102000.0,1.67476708]
[1738155956743,0.001,102020.0,102010.0,0.28789744]
[1738155957149,0.001,102020.0,102010.0,0.69869744]
[1738155957540,0.00106017,102020.0,102010.0,0.606914]
[1738155957741,0.00106017,102020.0,102010.0,0.246114]
[1738155957936,0.36186017,102020.0,102010.0,0.246114]
[1738155958145,0.55796817,102020.0,102010.0,0.246114]
[1738155958945,0.55796817,102020.0,102010.0,0.05]
[1738155959152,0.002,102010.0,102000.0,1.82190608]
[1738155959336,0.002,102010.0,102000.0,1.92090608]
[1738155959537,0.198128,102010.0,102000.0,1.82912264]
[1738155959743,0.19618817,102010.0,102000.0,1.46832264]
[1738155960248,0.64877161,102010.0,102000.0,1.27218364]
[1738155960545,0.73731144,102010.0,102000.0,1.17218364]
[1738155960747,0.4065,102010.0,102000.0,1.17218364]
[1738155960937,0.36286017,102010.0,102000.0,1.48011408]
[1738155961253,0.00206017,102010.0,102000.0,1.61499752]
[1738155961446,0.3608,102020.0,102010.0,0.196128]
[1738155961750,0.3608,102020.0,102010.0,0.51791144]
[1738155961948,0.3608,102020.0,102010.0,0.426128]
[1738155962653,0.3608,102020.0,102010.0,0.51791144]
[1738155963657,0.556908,102020.0,102010.0,0.426128]
[1738155963845,0.556908,102020.0,102010.0,0.51791144]
[1738155964253,0.556908,102020.0,102010.0,0.426128]
[1738155964554,0.556908,102020.0,102010.0,0.51791144]
[1738155964744,0.3608,102020.0,102010.0,0.51791144]
[1738155964945,0.36094685,102030.0,102020.0,0.196108]
[1738155965155,0.36094685,102030.0,102020.0,0.51369144]
[1738155965353,0.36094685,102030.0,102020.0,0.55649144]
[1738155966258,0.00014685,102030.0,102020.0,0.56049144]
[1738155968048,0.19623585,102030.0,102020.0,0.56049144]
[1738155968949,0.55703585,102030.0,102020.0,0.56049144]
[1738155969149,0.55703585,102030.0,102020.0,0.36438344]
[1738155969352,0.55703585,102030.0,102020.0,0.2726]
[1738155969549,0.55703585,102030.0,102020.0,0.36438344]
[1738155970560,0.55703585,102030.0,102020.0,0.56049144]
[1738155971360,0.55703585,102030.0,102020.0,0.468708]
[1738155971556,0.55703585,102030.0,102020.0,0.2726]
[1738155972262,0.55703585,102030.0,102020.0,0.184]
[1738155972557,0.69291929,102030.0,102020.0,0.004]
[1738155972761,0.196128,102010.0,102000.0,1.17218364]
[1738155973061,0.556928,102010.0,102000.0,1.30396708]
[1738155973249,0.556928,102010.0,102000.0,1.21218364]
[1738155974666,0.917728,102010.0,102000.0,1.17218364]
[1738155975166,0.920728,102010.0,102000.0,1.17218364]
[1738155976065,0.920728,102010.0,102000.0,1.19218364]
[1738155976255,0.920728,102010.0,102000.0,1.17218364]
[1738155976766,0.73734589,102010.0,102000.0,1.51011408]
[1738155976952,0.003,102010.0,102000.0,1.60189752]
[1738155977157,0.003,102010.0,102000.0,1.96269752]
[1738155977352,0.003,102010.0,102000.0,1.60189752]
[1738155978559,0.003,102010.0,102000.0,1.51011408]
[1738155980666,0.199128,102010.0,102000.0,1.51011408]
[1738155981766,0.199128,102010.0,102000.0,1.60189752]
[1738155981767,0.003,102010.0,102000.0,1.60189752]
[1738155982061,0.003,102010.0,102000.0,1.96269752]
[1738155982665,0.003,102010.0,102000.0,1.87091408]
[1738155982867,0.199128,102010.0,102000.0,1.96269752]
[1738155983175,0.199128,102010.0,102000.0,1.87091408]
[1738155983467,0.28547558,102010.0,102000.0,1.87091408]
[1738155984064,0.64627558,102010.0,102000.0,1.51011408]
[1738155984255,0.64627558,102010.0,102000.0,1.41833064]
[1738155984463,0.64627558,102010.0,102000.0,1.22218364]
[1738155984755,0.73805902,102010.0,102000.0,1.22218364]
[1738155984956,0.82455902,102010.0,102000.0,1.17218364]
[1738155986559,1.07544371,102010.0,102000.0,1.16900018]
[1738155987767,1.16722715,102010.0,102000.0,1.00425318]
[1738155987970,1.37544371,102010.0,102000.0,0.79746518]
[1738155988172,1.37544371,102010.0,102000.0,0.63011806]
[1738155988368,1.37544371,102010.0,102000.0,0.61072806]
[1738155988577,1.46722715,102010.0,102000.0,0.20496732]
[1738155988883,0.04904,102000.0,101960.0,0.28800744]
[1738155989178,0.3608,101970.0,101960.0,0.46800744]
[1738155990171,0.3608,101970.0,101960.0,0.46900744]
[1738155990876,0.3608,101980.0,101970.0,0.196205]
[1738155991072,0.3608,101980.0,101970.0,0.53338844]
[1738155991375,0.41772406,101990.0,101970.0,0.38623444]
[1738155991376,0.37322406,101990.0,101970.0,0.38623444]
[1738155991677,0.37322406,101990.0,101980.0,0.33166844]
[1738155991678,0.36094685,101990.0,101980.0,0.33166844]
[1738155991873,0.36094685,101990.0,101980.0,0.59436844]
[1738155992073,0.00014685,101990.0,101980.0,0.59436844]
[1738155992873,0.11537802,101990.0,101980.0,0.59436844]
[1738155993376,0.11537802,101990.0,101980.0,0.95516844]
[1738155993877,0.11737802,101990.0,101980.0,0.95516844]
[1738155994069,0.31688571,102000.0,101990.0,0.196166]
[1738155994264,0.96561615,102000.0,101990.0,0.416166]
[1738155994466,0.96561615,102000.0,101990.0,0.459866]
[1738155994877,0.87383271,102000.0,101990.0,0.459866]
[1738155995179,0.96561615,102000.0,101990.0,0.459866]
[1738155995382,1.01231615,102000.0,101990.0,0.459866]
[1738155995765,1.01231615,102000.0,101990.0,0.22]
[1738155995979,0.196166,101990.0,101980.0,0.00014685]
[1738155996176,0.196185,101980.0,101970.0,0.0437]
[1738155996381,0.64876844,101980.0,101970.0,0.0637]
[1738155996775,0.45258344,101980.0,101960.0,0.288409]
[1738155997082,0.64878844,101970.0,101960.0,0.2354]
[1738155997275,0.557005,101970.0,101960.0,0.2354]
[1738155997478,0.557005,101970.0,101960.0,0.431624]
[1738155997676,0.3608,101970.0,101960.0,0.52340744]
[1738155997878,0.36094685,101980.0,101970.0,0.196205]
[1738155998077,0.36094685,101980.0,101970.0,0.36798844]
[1738155998271,0.36094685,101980.0,101970.0,0.276205]
[1738155999074,0.36294685,101980.0,101970.0,0.276205]
[1738155999877,0.36394685,101980.0,101970.0,0.276205]
[1738156000679,0.37626352,101980.0,101970.0,0.276205]
[1738156001184,0.37626352,101980.0,101970.0,0.36798844]
[1738156001780,0.36394685,101980.0,101970.0,0.36798844]
[1738156002380,0.00314685,101980.0,101970.0,0.45977188]
[1738156002687,0.00314685,101980.0,101970.0,0.82057188]
[1738156002885,0.00314685,101980.0,101970.0,0.72878844]
[1738156004980,0.56013185,101980.0,101970.0,0.276205]
[1738156006878,0.65191529,101980.0,101970.0,0.08]
[1738156007283,0.56013185,101980.0,101970.0,0.08]
[1738156007898,0.56013185,101980.0,101970.0,0.276205]
[1738156008096,0.56013185,101980.0,101970.0,0.36798844]
[1738156008392,0.56013185,101980.0,101970.0,0.276205]
[1738156009495,0.56013185,101980.0,101970.0,0.08]
[1738156010000,0.65191529,101980.0,101970.0,0.08]
[1738156010391,0.196205,101970.0,101960.0,0.0454]
[1738156010596,0.557005,101970.0,101960.0,0.1454]
[1738156011391,0.64878844,101970.0,101960.0,0.1]
[1738156011592,0.74169803,101970.0,101960.0,0.1]
[1738156011898,0.64991459,101970.0,101960.0,0.1]
[1738156012093,0.64991459,101970.0,101960.0,0.101]
[1738156012896,0.74169803,101970.0,101960.0,0.101]
[1738156014897,0.74169803,101970.0,101960.0,0.001]
[1738156015098,0.59473544,101970.0,101940.0,0.196255]
[1738156015298,0.3608,101950.0,101940.0,0.52013844]
[1738156015595,0.3608,101960.0,101950.0,0.196235]
[1738156015796,0.00014685,101960.0,101950.0,0.67788344]
[1738156016002,0.00014685,101960.0,101950.0,0.96598644]
[1738156017611,0.00014685,101960.0,101950.0,0.96698644]
[1738156018602,0.00114685,101960.0,101950.0,0.96698644]
[1738156019095,0.00114685,101960.0,101950.0,0.91792644]
[1738156020799,0.55817085,101960.0,101950.0,0.465343]
[1738156021004,0.64995429,101960.0,101950.0,0.001]
[1738156021198,0.55817085,101960.0,101950.0,0.001]
[1738156021714,0.55817085,101960.0,101950.0,0.14278344]
[1738156022307,0.55817085,101960.0,101950.0,0.051]
[1738156022506,0.64995429,101960.0,101950.0,0.051]
[1738156022814,0.55817085,101960.0,101950.0,0.051]
[1738156023014,0.64995429,101960.0,101950.0,0.051]
[1738156023317,0.55817085,101960.0,101950.0,0.051]
[1738156023905,0.66170032,101960.0,101950.0,0.051]
[1738156024220,0.70460032,101960.0,101950.0,0.051]
[1738156024512,0.70460032,101960.0,101950.0,0.001]
[1738156025111,0.196243,101950.0,101940.0,0.19626]
[1738156025310,0.557043,101950.0,101940.0,0.36626]
[1738156026313,0.597843,101950.0,101940.0,0.17]
[1738156026810,0.597843,101950.0,101940.0,0.366262]
[1738156027217,0.557043,101950.0,101940.0,0.45804544]
[1738156027718,0.557043,101950.0,101940.0,0.366262]
[1738156028218,0.3608,101950.0,101940.0,0.45804544]
[1738156030719,0.3608,101950.0,101940.0,0.366262]
[1738156031116,0.3608,101950.0,101940.0,0.45804544]
[1738156031310,0.3608,101950.0,101940.0,0.366262]
[1738156031711,0.3608,101950.0,101940.0,0.45804544]
[1738156032118,0.65532751,101960.0,101950.0,0.196243]
[1738156032423,0.65532751,101960.0,101950.0,0.406243]
[1738156032922,0.65532751,101960.0,101950.0,0.49802644]
[1738156033111,0.65532751,101960.0,101950.0,0.495043]
[1738156033312,0.65632751,101960.0,101950.0,0.495043]
[1738156033512,0.65832751,101960.0,101950.0,0.495043]
[1738156033909,0.57191988,101960.0,101950.0,0.495043]
[1738156036619,0.37569288,101960.0,101950.0,0.58682644]
[1738156036829,0.01489288,101960.0,101950.0,0.58682644]
[1738156037118,0.01489288,101960.0,101950.0,0.495043]
[1738156037424,0.21111688,101960.0,101950.0,0.53797712]
[1738156037819,0.01489288,101960.0,101950.0,0.62976056]
[1738156038315,0.01489288,101960.0,101950.0,0.58682644]
[1738156038515,0.21111688,101960.0,101950.0,0.495043]
[1738156038925,0.21111688,101960.0,101950.0,0.58682644]
[1738156039626,0.57191688,101960.0,101950.0,0.451043]
[1738156040925,0.57191688,101960.0,101950.0,0.406243]
[1738156042019,0.66370032,101960.0,101950.0,0.21]
[1738156042526,0.57191688,101960.0,101950.0,0.21]
[1738156044517,0.37569288,101960.0,101950.0,0.30178344]
[1738156044718,0.37569288,101960.0,101950.0,0.49802644]
[1738156044919,0.37569288,101960.0,101950.0,0.58232644]
[1738156045523,0.46210051,101960.0,101950.0,0.58232644]
[1738156046221,0.45710208,101960.0,101950.0,0.490543]
[1738156046622,0.65332608,101960.0,101950.0,0.490543]
[1738156046823,0.65332608,101960.0,101950.0,0.449743]
[1738156047527,0.65332608,101960.0,101950.0,0.406243]
[1738156048635,0.56691845,101960.0,101950.0,0.406243]
[1738156048934,0.65870189,101960.0,101950.0,0.21]
[1738156049236,0.56691845,101960.0,101950.0,0.21]
[1738156052834,0.65870189,101960.0,101950.0,0.21]
[1738156053032,0.56691845,101960.0,101950.0,0.21]
[1738156054237,0.56691845,101960.0,101950.0,0.49802644]
[1738156054537,0.56691845,101960.0,101950.0,0.447843]
[1738156055032,0.65359663,101960.0,101950.0,0.447843]
[1738156055337,0.65359663,101960.0,101950.0,0.491343]
[1738156055536,0.74538007,101960.0,101950.0,0.21]
[1738156056634,0.65359663,101960.0,101950.0,0.21]
[1738156056825,0.74538007,101960.0,101950.0,0.21]
[1738156057334,0.65359663,101960.0,101950.0,0.21]
[1738156057934,0.74538007,101960.0,101950.0,0.21]
[1738156058130,0.78598007,101960.0,101950.0,0.21]
[1738156058832,0.90154952,101960.0,101950.0,0.21]
[1738156060233,0.196243,101950.0,101940.0,0.00014685]
[1738156060433,0.72942644,101950.0,101940.0,0.00014685]
[1738156063032,0.93167407,101950.0,101940.0,0.00014685]
[1738156063233,1.38905751,101950.0,101940.0,1e-08]
[1738156063433,0.99727407,101950.0,101940.0,1e-08]
[1738156064241,0.99703407,101950.0,101940.0,1e-08]
[1738156064442,0.196282,101930.0,101920.0,0.04072257]
[1738156064641,0.64886544,101930.0,101920.0,0.11072257]
[1738156064846,0.557082,101930.0,101920.0,0.11072257]
[1738156065030,0.597982,101930.0,101920.0,0.11072257]
[1738156065836,0.69076544,101930.0,101920.0,0.11172257]
[1738156066031,0.73436544,101930.0,101920.0,0.11172257]
[1738156066644,0.73436544,101930.0,101920.0,0.07112257]
[1738156067034,1.09516544,101930.0,101920.0,0.07112257]
[1738156067237,1.09516544,101930.0,101920.0,0.00112257]
[1738156068949,1.09416544,101930.0,101920.0,0.00112257]
[1738156069137,1.09416544,101930.0,101920.0,0.00012257]
[1738156071851,1.1058023,101930.0,101920.0,0.00012257]
[1738156072254,1.10069704,101930.0,101920.0,0.00012257]
[1738156072736,1.10069704,101930.0,101920.0,0.04292257]
[1738156073654,1.10069704,101930.0,101920.0,0.05292257]
[1738156074738,1.19248048,101930.0,101920.0,0.01012257]
[1738156076151,1.1058023,101930.0,101920.0,0.01012257]
[1738156076550,0.97041886,101930.0,101920.0,0.01012257]
[1738156076746,0.92951886,101930.0,101920.0,0.09482257]
[1738156077052,0.92951886,101930.0,101920.0,0.29112357]
[1738156079248,0.73323686,101930.0,101920.0,0.38290701]
[1738156080045,0.73323686,101930.0,101920.0,0.29112357]
[1738156080455,0.73323686,101930.0,101920.0,0.38290701]
[1738156080648,0.37243686,101930.0,101920.0,0.38290701]
[1738156080849,0.08682503,101940.0,101920.0,0.54740601]
[1738156081049,0.08682503,101940.0,101930.0,0.69096544]
[1738156081253,0.08682503,101940.0,101930.0,0.87096544]
[1738156081956,0.00014685,101940.0,101930.0,0.87096544]
[1738156082646,0.00214685,101940.0,101930.0,0.87096544]
[1738156083951,0.00314685,101940.0,101930.0,0.87096544]
[1738156084163,0.19940885,101940.0,101930.0,0.87096544]
[1738156084854,0.19940885,101940.0,101930.0,0.2221]
[1738156085061,0.65199229,101940.0,101930.0,0.2221]
[1738156085359,0.56020885,101940.0,101930.0,0.2221]
[1738156086957,0.196282,101930.0,101920.0,0.00012257]
[1738156087256,0.196301,101920.0,101910.0,0.0423]
[1738156087452,0.557101,101920.0,101910.0,0.0423]
[1738156088151,0.55719257,101920.0,101910.0,0.0423]
[1738156088356,0.60029257,101920.0,101910.0,0.0423]
[1738156088758,0.60229257,101920.0,101910.0,0.0423]
[1738156088951,0.69407601,101920.0,101910.0,0.0423]
[1738156089152,0.60229257,101920.0,101910.0,0.0423]
[1738156089653,0.60329257,101920.0,101910.0,0.0423]
[1738156091960,0.78175419,101920.0,101910.0,0.0423]
[1738156092254,0.68997075,101920.0,101910.0,0.0423]
[1738156092457,0.70758227,101920.0,101910.0,0.0423]
[1738156092862,0.79936571,101920.0,101910.0,0.0423]
[1738156093163,0.70758227,101920.0,101910.0,0.0423]
[1738156093357,0.79936571,101920.0,101910.0,0.0423]
[1738156093562,0.70758227,101920.0,101910.0,0.0423]
[1738156093861,0.46818127,101920.0,101910.0,0.38040344]
[1738156094062,0.10738127,101920.0,101910.0,0.47218688]
[1738156094963,0.00309157,101920.0,101910.0,0.83298688]
[1738156095259,0.20224763,101930.0,101920.0,0.196301]
[1738156095560,0.20224763,101930.0,101920.0,0.48808444]
[1738156095768,0.14418581,101940.0,101930.0,0.196282]
[1738156096061,0.14418581,101940.0,101930.0,0.95606544]
[1738156096656,0.70124781,101940.0,101930.0,0.59526544]
[1738156097159,0.70124781,101940.0,101930.0,0.59626544]
[1738156097356,0.79303125,101940.0,101930.0,0.2638]
[1738156097556,0.70124781,101940.0,101930.0,0.2638]
[1738156098054,0.70124781,101940.0,101930.0,0.460082]
[1738156098256,0.55720885,101940.0,101930.0,0.55186544]
[1738156099161,0.55720885,101940.0,101930.0,0.55486544]
[1738156100052,0.00014685,101940.0,101930.0,0.55486544]
[1738156100458,0.00014685,101940.0,101930.0,0.91566544]
[1738156101261,1e-08,101940.0,101930.0,1.01771435]
[1738156102063,1e-08,101940.0,101930.0,1.20759952]
[1738156102261,1e-08,101940.0,101930.0,1.11581608]
[1738156102565,1e-08,101940.0,101930.0,1.01376717]
[1738156103360,1e-08,101940.0,101930.0,0.91566544]
[1738156103866,1e-08,101940.0,101930.0,0.95860954]
[1738156104058,1e-08,101940.0,101930.0,1.14849471]
[1738156104354,1e-08,101940.0,101930.0,1.57477313]
[1738156104762,1e-08,101940.0,101930.0,1.59477313]
[1738156105561,1e-08,101940.0,101930.0,1.59177313]
[1738156105754,1e-08,101940.0,101930.0,1.57077313]
[1738156106672,1e-08,101940.0,101930.0,0.97690544]
[1738156106857,1e-08,101940.0,101930.0,0.91166544]
[1738156107059,0.37917356,101970.0,101960.0,0.196224]
[1738156107358,0.50483896,101980.0,101960.0,0.84205535]
[1738156107359,0.14403896,101980.0,101960.0,0.84205535]
[1738156107556,0.14403896,101980.0,101970.0,0.78407188]
[1738156107761,0.14403896,101980.0,101970.0,1.07259188]
[1738156108273,0.34022496,101980.0,101970.0,0.91228844]
[1738156108466,0.70102496,101980.0,101970.0,0.55148844]
[1738156108965,0.51183896,101980.0,101970.0,0.64427188]
[1738156109165,0.51383896,101980.0,101970.0,0.64427188]
[1738156109367,0.71002496,101980.0,101970.0,0.55248844]
[1738156110162,0.51383896,101980.0,101970.0,0.64427188]
[1738156110356,0.15303896,101980.0,101970.0,1.04717188]
[1738156112070,0.15303896,101980.0,101970.0,0.95538844]
[1738156112270,0.15303896,101980.0,101970.0,1.04717188]
[1738156116471,0.15303896,101980.0,101970.0,0.82717188]
[1738156116672,0.15303896,101980.0,101970.0,1.05717188]
[1738156118659,0.009,101980.0,101970.0,1.05717188]
[1738156119668,0.009,101980.0,101970.0,1.15523513]
[1738156119870,0.009,101980.0,101970.0,1.12523513]
[1738156120575,0.009,101980.0,101970.0,1.02717188]
[1738156122171,0.565986,101980.0,101970.0,0.62427188]
[1738156122472,0.565986,101980.0,101970.0,0.58077188]
[1738156122668,0.702986,101980.0,101970.0,0.29278344]
[1738156123061,0.3698,101980.0,101970.0,0.58077188]
[1738156123273,0.00014685,101990.0,101980.0,0.196186]
[1738156123465,0.00014685,101990.0,101980.0,0.51796944]
[1738156124074,0.00014685,101990.0,101980.0,0.56326944]
[1738156124472,0.00314685,101990.0,101980.0,0.56326944]
[1738156124671,0.01214685,101990.0,101980.0,0.56326944]